[Event "Germany Countries-chT Youth 2022"]
[Site "Wiesbaden"]
[Date "2022.10.02"]
[Round "3"]
[White "Koepnick, Amanda"]
[Black "Skembris, Simon Max"]
[Result "0-1"]
[ECO "B24"]
[WhiteElo "1244"]
[BlackElo "1540"]
[Annotator "NA COMBH"]
[PlyCount "66"]
[EventDate "2022.09.28"]
[EventType "team-tourn"]
[EventRounds "7"]
[EventCountry "GER"]
[SourceTitle "playchess.com"]
[Source "ChessBase"]
[SourceQuality "1"]
[TimeControl "40/5400+30:1800+30"]

1. e4 {[%emt 0:00:02]} c5 {[%emt 0:00:09]} 2. Nc3 {[%emt 0:00:14]} Nc6 {[%emt 0:00:08]} 3. g3 {[%emt 0:00:12]} g6 {[%emt 0:00:19]} 4. Bg2 {[%emt 0:00:19]} Bg7 {[%emt 0:00:20]} 5. f4 {[%emt 0:00:20]} d6 {[%emt 0:00:54]} 6. Nf3 {[%emt 0:00:27]} Nf6 {[%emt 0:01:06]} 7. O-O {[%emt 0:02:10]} O-O {[%emt 0:00:54]} 8. d3 {[%emt 0:00:33]} a6 {[%emt 0:00:58]} 9. h3 {[%emt 0:03:37]} b5 {[%emt 0:02:25]} 10. Be3 {[%emt 0:02:29]} Qc7 {[%emt 0:04:56]} 11. g4 {[%emt 0:08:58]} Bb7 {[%emt 0:02:38]} 12. f5 {[%emt 0:04:13]} b4 {[%emt 0:08:55]} 13. Ne2 {[%emt 0:03:46]} Rad8 {[%emt 0:04:08]} 14. c4 {[%emt 0:17:36]} bxc3 {[%emt 0:03:01]} 15. bxc3 {[%emt 0:09:35]} c4 {[%emt 0:03:09]} 16. Rb1 {[%emt 0:08:49]} cxd3 {[%emt 0:02:04]} 17. Qxd3 {[%emt 0:07:17]} Rd7 {[%emt 0:01:31]} 18. Qc4 {[%emt 0:03:27]} d5 {[%emt 0:06:58]} 19. exd5 {[%emt 0:01:24]} Nxd5 {[%emt 0:00:33]} 20. Bf2 {[%emt 0:04:07]} Rfd8 {[%emt 0:03:17]} 21. Ng5 {[%emt 0:03:56]} Bf6 {[%emt 0:05:50]} 22. Bb6 {[%emt 0:05:17]} Qe5 {[%emt 0:04:05]} 23. Nxf7 {[%emt 0:04:07]} Kxf7 {[%emt 0:00:52]} 24. Bxd8 {[%emt 0:02:00]} Qe3+ {[%emt 0:01:19]} 25. Kh1 {[%emt 0:02:24]} Ne5 {[%emt 0:01:21]} 26. fxg6+ {[%emt 0:01:32]} hxg6 {[%emt 0:01:40]} 27. Qe4 {[%emt 0:03:07]} Qg5 {[%emt 0:03:02]} 28. Rxb7 {[%emt 0:00:27]} Rxd8 {[%emt 0:00:28]} 29. Rd1 {[%emt 0:01:05]} Rh8 {[%emt 0:01:56]} 30. Qxd5+ {[%emt 0:00:41]} Kg7 {[%emt 0:00:15]} 31. Ng1 {[%emt 0:00:51]} Qf4 {[%emt 0:02:31]} 32. Qe4 {[%emt 0:00:50]} Qg3 {[%emt 0:00:48]} 33. Rd3 {[%emt 0:00:27]} Nxd3 {[%emt 0:03:28]} 0-1

[Event "Germany Countries-chT Youth 2022"]
[Site "Wiesbaden"]
[Date "2022.10.02"]
[Round "3"]
[White "Alhassan, Jodi"]
[Black "Czaeczine, Paula"]
[Result "0-1"]
[ECO "C55"]
[WhiteElo "1227"]
[BlackElo "1322"]
[Annotator "NA RC COMBH"]
[PlyCount "96"]
[EventDate "2022.09.28"]
[EventType "team-tourn"]
[EventRounds "7"]
[EventCountry "GER"]
[SourceTitle "playchess.com"]
[Source "ChessBase"]
[SourceQuality "1"]
[TimeControl "40/5400+30:1800+30"]

1. e4 {[%emt 0:00:07]} e5 {[%emt 0:00:05]} 2. Nf3 {[%emt 0:00:11]} Nc6 {[%emt 0:00:06]} 3. Bc4 {[%emt 0:00:18]} Nf6 {[%emt 0:00:06]} 4. d3 {[%emt 0:00:14]} d5 {[%emt 0:00:06]} 5. exd5 {[%emt 0:01:21]} Nxd5 {[%emt 0:00:08]} 6. O-O {[%emt 0:01:22]} Bc5 {[%emt 0:00:08]} 7. Bxd5 {[%emt 0:04:05]} Qxd5 {[%emt 0:00:09]} 8. Nc3 {[%emt 0:00:22]} Qe6 9. Re1 {[%emt 0:25:37]} O-O {[%emt 0:12:15]} 10. Bf4 {[%emt 0:23:40]} f6 {[%emt 0:07:12]} 11. Qd2 {[%emt 0:00:30]} Qf7 {[%emt 0:18:17]} 12. Bg3 {[%emt 0:05:11]} Bg4 {[%emt 0:05:26]} 13. Ne4 {[%emt 0:16:01]} Bb6 {[%emt 0:01:33]} 14. Qd1 {[%emt 0:01:01]} Nd4 {[%emt 0:10:40]} 15. Ned2 {[%emt 0:00:46]} Qd5 {[%emt 0:07:30]} 16. Re4 {[%emt 0:04:25]} h5 {[%emt 0:07:13]} 17. h3 {[%emt 0:02:13]} Bf5 {[%emt 0:11:55]} 18. Re1 {[%emt 0:01:37]} Bg6 {[%emt 0:00:52]} 19. Nh4 {[%emt 0:05:48]} Bf7 {[%emt 0:02:59]} 20. Nc4 {[%emt 0:00:35]} Bc5 {[%emt 0:01:51]} 21. Ne3 {[%emt 0:01:16]} Qc6 {[%emt 0:02:39]} 22. Nhf5 {[%emt 0:03:17]} Qe6 {[%emt 0:00:24]} 23. Nxd4 {[%emt 0:00:38]} Bxd4 24. c3 {[%emt 0:00:59]} Bb6 {[%emt 0:01:20]} 25. Nc4 {[%emt 0:00:17]} Qc6 {[%emt 0:00:36]} 26. Nxb6 {[%emt 0:00:26]} axb6 27. a3 Bd5 {[%emt 0:01:36]} 28. f3 {[%emt 0:01:05]} b5 {[%emt 0:01:03]} 29. Qd2 {[%emt 0:00:20]} Rad8 {[%emt 0:01:19]} 30. Qc2 {[%emt 0:00:48]} Rd7 {[%emt 0:01:14]} 31. Rad1 {[%emt 0:00:22]} Qe6 {[%emt 0:00:24]} 32. Qb1 {[%emt 0:00:57]} Rfd8 {[%emt 0:00:46]} 33. d4 {[%emt 0:00:16]} Qb6 {[%emt 0:02:20]} 34. Bf2 {[%emt 0:00:15]} Bb3 {[%emt 0:02:25]} 35. dxe5 {[%emt 0:00:48]} Rxd1 {[%emt 0:00:37]} 36. Rxd1 {[%emt 0:00:43]} Rxd1+ {[%emt 0:00:06]} 37. Qxd1 {[%emt 0:00:14]} Qxf2+ {[%emt 0:00:31]} 38. Kxf2 {[%emt 0:00:05]} Bxd1 {[%emt 0:00:04]} 39. exf6 {[%emt 0:00:07]} gxf6 {[%emt 0:00:10]} 40. Ke3 {[%emt 0:00:14]} Kf7 {[%emt 0:00:45]} 41. g3 Ke6 {[%emt 0:31:23]} 42. f4 {[%emt 0:05:35]} c6 {[%emt 0:00:00]} 43. b4 {[%emt 0:02:59]} Kd5 {[%emt 0:00:00]} 44. Kd3 {[%emt 0:00:48]} f5 {[%emt 0:00:00]} 45. h4 {[%emt 0:00:06]} Bf3 {[%emt 0:00:00]} 46. Ke3 {[%emt 0:01:07]} Be4 {[%emt 0:00:00]} 47. Ke2 {[%emt 0:01:59]} Kc4 {[%emt 0:00:00]} 48. Kd2 {[%emt 0:00:06]} Kb3 {[%emt 0:00:00]} 0-1

[Event "Germany Countries-chT Youth 2022"]
[Site "Wiesbaden"]
[Date "2022.10.02"]
[Round "3"]
[White "Färber, Anna"]
[Black "Roessling, Laura Marie"]
[Result "1-0"]
[ECO "C55"]
[WhiteElo "1165"]
[BlackElo "1418"]
[Annotator "NA RC COMBH"]
[PlyCount "111"]
[EventDate "2022.09.28"]
[EventType "team-tourn"]
[EventRounds "7"]
[EventCountry "GER"]
[SourceTitle "playchess.com"]
[Source "ChessBase"]
[SourceQuality "1"]
[TimeControl "40/5400+30:1800+30"]

1. e4 {[%emt 0:00:02]} e5 {[%emt 0:00:10]} 2. Nf3 {[%emt 0:00:07]} Nc6 {[%emt 0:00:12]} 3. Bc4 {[%emt 0:00:08]} Bc5 {[%emt 0:00:16]} 4. O-O {[%emt 0:00:09]} Nf6 {[%emt 0:01:55]} 5. d4 {[%emt 0:00:12]} exd4 {[%emt 0:06:13]} 6. e5 {[%emt 0:00:15]} d5 {[%emt 0:01:03]} 7. exf6 {[%emt 0:00:11]} dxc4 {[%emt 0:00:24]} 8. fxg7 {[%emt 0:00:14]} Rg8 {[%emt 0:00:22]} 9. Re1+ {[%emt 0:00:33]} Be6 {[%emt 0:05:02]} 10. Bh6 {[%emt 0:08:13]} Be7 {[%emt 0:04:04]} 11. Qe2 {[%emt 0:07:32]} Qd5 {[%emt 0:04:31]} 12. Ne5 {[%emt 0:04:27]} O-O-O {[%emt 0:06:14]} 13. Nxc6 {[%emt 0:06:28]} Qxc6 {[%emt 0:01:12]} 14. Qe5 {[%emt 0:01:39]} Bd6 {[%emt 0:01:17]} 15. Qe4 {[%emt 0:01:40]} Bd5 {[%emt 0:01:15]} 16. Qg4+ {[%emt 0:01:38]} Be6 {[%emt 0:03:17]} 17. Qe4 {[%emt 0:01:35]} Qxe4 {[%emt 0:00:59]} 18. Rxe4 {[%emt 0:00:09]} Bf5 {[%emt 0:00:39]} 19. Re2 {[%emt 0:02:39]} d3 {[%emt 0:01:17]} 20. cxd3 {[%emt 0:00:32]} Bxd3 {[%emt 0:00:18]} 21. Re1 {[%emt 0:01:11]} Rde8 {[%emt 0:00:37]} 22. Nc3 {[%emt 0:00:46]} c6 {[%emt 0:01:48]} 23. a3 {[%emt 0:03:51]} Re6 {[%emt 0:01:36]} 24. Rxe6 {[%emt 0:01:47]} fxe6 {[%emt 0:00:28]} 25. Re1 {[%emt 0:00:14]} Kd7 {[%emt 0:01:16]} 26. Ne4 {[%emt 0:01:09]} Bxe4 {[%emt 0:01:04]} 27. Rxe4 {[%emt 0:00:06]} b5 {[%emt 0:00:32]} 28. Re3 {[%emt 0:00:33]} Ke7 {[%emt 0:01:04]} 29. Rf3 {[%emt 0:00:11]} Ke8 {[%emt 0:00:25]} 30. Kf1 {[%emt 0:01:08]} Be5 {[%emt 0:01:54]} 31. Rf8+ {[%emt 0:00:15]} Ke7 {[%emt 0:01:12]} 32. Rxg8 Bxb2 {[%emt 0:00:55]} 33. Re8+ {[%emt 0:01:08]} Kxe8 {[%emt 0:00:24]} 34. g8=Q+ {[%emt 0:00:12]} Kd7 {[%emt 0:00:09]} 35. Qf7+ {[%emt 0:00:28]} Kd6 {[%emt 0:00:25]} 36. Qxa7 {[%emt 0:00:18]} Be5 {[%emt 0:00:48]} 37. Bf8+ {[%emt 0:00:37]} Kd5 {[%emt 0:00:24]} 38. Qd7+ {[%emt 0:00:41]} Ke4 {[%emt 0:00:20]} 39. Qxe6 {[%emt 0:00:26]} Kd4 {[%emt 0:00:58]} 40. Qd7+ {[%emt 0:01:56]} Ke4 {[%emt 0:00:36]} 41. Qxc6+ {[%emt 0:30:16]} Kf5 {[%emt 0:30:22]} 42. Bb4 {[%emt 0:00:25]} Bf4 {[%emt 0:01:25]} 43. Qxb5+ {[%emt 0:00:20]} Ke4 {[%emt 0:00:31]} 44. Qxc4+ {[%emt 0:00:27]} Kf5 {[%emt 0:00:31]} 45. g4+ {[%emt 0:00:57]} Kxg4 {[%emt 0:00:54]} 46. Bd6 {[%emt 0:00:14]} Kf5 {[%emt 0:00:11]} 47. Bxf4 {[%emt 0:00:37]} Kf6 {[%emt 0:00:45]} 48. a4 {[%emt 0:00:14]} h5 {[%emt 0:00:26]} 49. a5 {[%emt 0:00:10]} h4 {[%emt 0:00:05]} 50. a6 {[%emt 0:00:13]} h3 {[%emt 0:00:06]} 51. Qd5 {[%emt 0:00:16]} Ke7 {[%emt 0:00:31]} 52. a7 {[%emt 0:00:15]} Kf6 {[%emt 0:00:12]} 53. a8=Q Kg6 {[%emt 0:00:39]} 54. Qa6+ {[%emt 0:00:24]} Kg7 {[%emt 0:00:26]} 55. Qdb7+ {[%emt 0:00:09]} Kf8 {[%emt 0:00:20]} 56. Qaa8# 1-0

[Event "Germany Countries-chT Youth 2022"]
[Site "Wiesbaden"]
[Date "2022.10.02"]
[Round "3"]
[White "Abram, Kristina-Maria"]
[Black "Neininger, Sarah"]
[Result "1-0"]
[ECO "A01"]
[WhiteElo "1158"]
[BlackElo "1589"]
[Annotator "NA COMBH"]
[PlyCount "73"]
[EventDate "2022.09.28"]
[EventType "team-tourn"]
[EventRounds "7"]
[EventCountry "GER"]
[SourceTitle "playchess.com"]
[Source "ChessBase"]
[SourceQuality "1"]
[TimeControl "40/5400+30:1800+30"]

1. b3 {[%emt 0:00:05]} d5 {[%emt 0:00:55]} 2. Bb2 {[%emt 0:00:14]} Nc6 {[%emt 0:01:35]} 3. e3 {[%emt 0:00:12]} e6 {[%emt 0:01:02]} 4. Bb5 {[%emt 0:00:20]} Bd7 {[%emt 0:00:15]} 5. Nf3 {[%emt 0:00:37]} Nf6 {[%emt 0:00:59]} 6. d4 {[%emt 0:01:03]} a6 {[%emt 0:02:49]} 7. Bd3 {[%emt 0:00:47]} Bd6 {[%emt 0:03:33]} 8. c4 {[%emt 0:00:13]} O-O {[%emt 0:09:07]} 9. c5 {[%emt 0:00:17]} Be7 {[%emt 0:00:10]} 10. a3 {[%emt 0:00:28]} Ne4 {[%emt 0:05:35]} 11. Nbd2 {[%emt 0:01:44]} Nxd2 {[%emt 0:05:36]} 12. Qxd2 {[%emt 0:00:42]} e5 {[%emt 0:00:49]} 13. dxe5 {[%emt 0:00:34]} Bxc5 {[%emt 0:00:14]} 14. Qc2 {[%emt 0:00:21]} Qe7 {[%emt 0:11:52]} 15. Bxh7+ {[%emt 0:00:40]} Kh8 {[%emt 0:00:03]} 16. h4 {[%emt 0:02:42]} Bb6 {[%emt 0:10:03]} 17. Rh2 {[%emt 0:01:30]} Bg4 {[%emt 0:11:57]} 18. Rd1 {[%emt 0:15:28]} Rad8 {[%emt 0:08:11]} 19. Kf1 {[%emt 0:02:18]} Bxf3 {[%emt 0:05:54]} 20. gxf3 {[%emt 0:00:16]} Nxe5 {[%emt 0:01:58]} 21. Qf5 {[%emt 0:02:58]} g6 {[%emt 0:09:10]} 22. Bxg6 {[%emt 0:02:41]} fxg6 {[%emt 0:00:45]} 23. Bxe5+ {[%emt 0:01:01]} Kh7 {[%emt 0:00:11]} 24. Qg5 {[%emt 0:01:48]} Qxg5 {[%emt 0:00:51]} 25. hxg5+ {[%emt 0:00:08]} Kg8 {[%emt 0:00:02]} 26. Rh8+ {[%emt 0:01:05]} Kf7 {[%emt 0:00:02]} 27. Rh7+ {[%emt 0:00:27]} Ke6 {[%emt 0:00:36]} 28. Bxc7 {[%emt 0:00:24]} Bxc7 {[%emt 0:00:08]} 29. Rxc7 {[%emt 0:00:05]} b5 {[%emt 0:00:44]} 30. Rc6+ {[%emt 0:00:19]} Kf5 {[%emt 0:00:21]} 31. Rxa6 {[%emt 0:00:21]} Kxg5 {[%emt 0:00:11]} 32. Ra5 {[%emt 0:00:25]} Rxf3 {[%emt 0:00:50]} 33. Rxb5 {[%emt 0:00:10]} Rf5 {[%emt 0:00:13]} 34. e4 {[%emt 0:00:32]} Re5 {[%emt 0:00:41]} 35. Rbxd5 {[%emt 0:00:33]} Rde8 {[%emt 0:01:01]} 36. Rxe5+ {[%emt 0:00:14]} Rxe5 {[%emt 0:00:07]} 37. Rd5 {[%emt 0:00:07]} 1-0

[Event "Germany Countries-chT Youth 2022"]
[Site "Wiesbaden"]
[Date "2022.10.02"]
[Round "4"]
[White "Lutsko, Artem"]
[Black "Krastev, Alexander"]
[Result "0-1"]
[ECO "A77"]
[WhiteElo "2431"]
[BlackElo "2431"]
[Annotator "TA"]
[PlyCount "120"]
[EventDate "2022.09.28"]
[EventType "team-tourn"]
[EventRounds "7"]
[EventCountry "GER"]
[SourceTitle "playchess.com"]
[Source "ChessBase"]
[SourceQuality "1"]
[TimeControl "40/5400+30:1800+30"]

{[%evp 23,120,10,16,9,64,0,0,-22,-31,-57,-63,-71,-97,-131,-143,-141,-116,-146,-119,-104,-115,-112,-119,-116,-109,-123,-105,-124,-102,-98,-72,-70,-74,-74,-68,-68,-33,-30,-26,-42,-51,-41,-21,-27,-14,-19,-8,-33,-33,-101,-100,-106,-71,-83,-65,-64,-64,-62,-64,-117,-119,-110,-109,-114,-119,-116,-117,-157,-126,-123,-108,-130,-128,-142,-150,-176,-154,-178,-178,-186,-178,-206,-131,-195,-202,-202,-186,-255,-178,-1785,-1840,-1734,-1370,-12838,-12838,-12845,-12845,-12845,-12846]} 1. d4 {[%emt 0:00:30]} Nf6 {[%emt 0:00:02]} 2. c4 {[%emt 0:00:00]} e6 {[%emt 0:00:05]} 3. Nf3 {[%emt 0:00:00]} c5 {[%emt 0:00:05]} 4. d5 {[%emt 0:00:00]} d6 {[%emt 0:00:04]} 5. Nc3 {[%emt 0:00:00]} exd5 {[%emt 0:00:06]} 6. cxd5 {[%emt 0:00:00]} g6 {[%emt 0:00:08]} 7. Nd2 {[%emt 0:00:16]} Bg7 {[%emt 0:00:08]} 8. e4 {[%emt 0:00:02]} O-O {[%emt 0:00:07]} 9. Be2 {[%emt 0:00:04]} Re8 {[%emt 0:00:06]} 10. O-O {[%emt 0:00:05]} Nbd7 {[%emt 0:00:07]} 11. Re1 {[%emt 0:02:37]} a6 {[%emt 0:03:04]} 12. a4 {[%emt 0:00:05]} Ne5 {[%emt 0:00:11]} 13. Nf1 {[%emt 0:00:46] A77: Modern Benoni: Classical: 9...Re8 10 Nd2: 10...a6 and 10...Nbd7.} Bg4 {[%emt 0:10:35] [#]} (13... Nfg4 $11) 14. Bxg4 $146 {[%emt 0:10:26]} ({White should try} 14. f3 $1 $14 Bd7 15. Ne3) ({Predecessor:} 14. f3 Bc8 15. a5 b5 16. axb6 Qxb6 17. Ne3 Nh5 18. Nc4 Nxc4 19. Bxc4 Be5 20. Ne2 Bxb2 {0-1 (59) Moskalenko,A (2515)-Boyer,M (2317) Chess.com INT 2020}) 14... Nexg4 $11 {[%emt 0:00:36]} ({Don't do} 14... Nfxg4 15. f4 $16) 15. a5 {[%emt 0:17:40] The position is equal.} Ne5 {[%emt 0:06:31]} 16. Ne3 {[%emt 0:06:10]} c4 $1 {[%emt 0:04:12]} 17. Re2 {[%emt 0:05:21]} Rc8 {[%emt 0:02:48]} 18. Ra4 {[%emt 0:09:24]} Nfd7 {[%emt 0:12:34]} 19. f4 {[%emt 0:20:22]} Nd3 {[%emt 0:01:07]} 20. Rxc4 {[%emt 0:05:07]} Nxc1 {[%emt 0:00:52] Black has more active pieces.} ({Worse is} 20... Nxf4 21. Rf2 Rxc4 22. Nxc4 $17) 21. Qxc1 {[%emt 0:00:25]} Qxa5 {[%emt 0:00:21]} 22. Ncd1 {[%emt 0:05:36]} Rxc4 {[%emt 0:18:44]} 23. Qxc4 {[%emt 0:00:01]} Qc5 {[%emt 0:00:27]} 24. Kf1 {[%emt 0:02:47]} b5 {[%emt 0:01:42]} 25. Qd3 {[%emt 0:01:16]} Qc1 {[%emt 0:08:55]} 26. Qc2 {[%emt 0:01:12]} Qxc2 {[%emt 0:02:02]} 27. Nxc2 {[%emt 0:00:01]} Nc5 {[%emt 0:00:14]} 28. Nb4 {[%emt 0:00:01]} a5 {[%emt 0:16:51]} ({Of course not} 28... Nxe4 $6 29. Nxa6 Kf8 30. Nc7 $11) (28... Rxe4 $6 29. Rxe4 Nxe4 30. Nxa6 $11) 29. Nc6 {[%emt 0:00:02]} Nxe4 {[%emt 0:00:11] Strongly threatening ...a4.} 30. Nxa5 {[%emt 0:00:22]} f5 {[%emt 0:00:17]} 31. Nf2 {[%emt 0:02:43]} Nf6 {[%emt 0:00:14]} 32. Rd2 {[%emt 0:03:25]} Ra8 {[%emt 0:02:19]} 33. Nc6 {[%emt 0:01:31]} Ra1+ {[%emt 0:03:07]} 34. Ke2 {[%emt 0:00:02]} Nd7 {[%emt 0:01:51]} 35. Rc2 {[%emt 0:06:43]} Nb6 {[%emt 0:02:51]} 36. Ne7+ {[%emt 0:01:05]} (36. Nb4 $15) 36... Kf8 $1 $17 {[%emt 0:00:05]} 37. Nc8 {[%emt 0:00:03]} Nxd5 {[%emt 0:01:16]} 38. Nxd6 {[%emt 0:00:05]} Nxf4+ {[%emt 0:02:58]} 39. Kf3 {[%emt 0:00:01]} Ne6 {[%emt 0:00:33] And now ...Nd4+ would win.} 40. Nxb5 {[%emt 0:00:43]} Ra8 {[%emt 0:01:16] aiming for ...Rb8.} 41. Rd2 {[%emt 0:33:25]} (41. Nd3 $15) 41... Rb8 $1 {[%emt 0:12:17]} 42. Nc3 {[%emt 0:00:00]} Bh6 $1 {[%emt 0:00:26]} 43. Rd6 {[%emt 0:00:00]} Ng5+ {[%emt 0:00:05]} 44. Ke2 {[%emt 0:00:00]} Rxb2+ {[%emt 0:00:20]} 45. Ke1 {[%emt 0:00:00]} Nf7 {[%emt 0:02:41]} 46. Rd5 {[%emt 0:00:00]} Bg7 {[%emt 0:02:13]} 47. Ncd1 {[%emt 0:00:00]} Ra2 {[%emt 0:00:18]} 48. Rb5 {[%emt 0:00:00]} Be5 {[%emt 0:01:38]} 49. g3 {[%emt 0:00:00]} Bd4 {[%emt 0:00:40]} 50. Rd5 {[%emt 0:00:00] [#]} Ne5 $1 {[%emt 0:01:00] White must now prevent ...Nf3+.} 51. Kf1 {[%emt 0:00:00]} Rd2 {[%emt 0:00:32]} 52. h4 {[%emt 0:00:00]} h6 {[%emt 0:05:55]} 53. Ke1 {[%emt 0:00:00] [#]} (53. h5 $17) 53... Nf3+ $1 $19 {[%emt 0:00:05]} 54. Kf1 {[%emt 0:00:00]} Kf7 {[%emt 0:01:36]} 55. Rd6 {[%emt 0:00:00]} (55. Rb5 {was called for.}) 55... g5 {[%emt 0:03:12]} 56. Rxh6 $2 {[%emt 0:00:00]} (56. hxg5 hxg5 57. g4) 56... Bxf2 {[%emt 0:03:02] Black is clearly winning.} 57. Nxf2 {[%emt 0:00:00] [#]} Nh2+ $1 {[%emt 0:00:06]} 58. Ke1 {[%emt 0:00:00] [#]} Rxf2 $1 {[%emt 0:00:06][%mdl 512]} 59. hxg5 {[%emt 0:00:00]} (59. Rh7+ Kg6) 59... Ng4 {[%emt 0:00:06]} 60. Rb6 {[%emt 0:00:00]} Rf3 {[%emt 0:00:52] Weighted Error Value: White=0.47/Black=0.10 (very precise)} 0-1

[Event "Germany Countries-chT Youth 2022"]
[Site "Wiesbaden"]
[Date "2022.10.02"]
[Round "4"]
[White "Schmider, Niklas"]
[Black "Stelmaszyk, Nico"]
[Result "1/2-1/2"]
[ECO "E06"]
[WhiteElo "2407"]
[BlackElo "2355"]
[Annotator "TA"]
[PlyCount "52"]
[EventDate "2022.09.28"]
[EventType "team-tourn"]
[EventRounds "7"]
[EventCountry "GER"]
[SourceTitle "playchess.com"]
[Source "ChessBase"]
[SourceQuality "1"]
[TimeControl "40/5400+30:1800+30"]

{[%evp 15,52,16,12,10,11,0,10,12,7,5,30,25,21,0,14,0,0,-27,-33,-21,0,0,-8,-37,-37,-39,-11,0,-1,0,0,-21,-21,-30,-25,-39,-44,-53,0]} 1. Nf3 {[%emt 0:00:30]} Nf6 {[%emt 0:00:04]} 2. c4 {[%emt 0:00:23]} e6 {[%emt 0:00:05]} 3. g3 {[%emt 0:01:51]} d5 {[%emt 0:00:05]} 4. d4 {[%emt 0:00:23]} Be7 {[%emt 0:00:05]} 5. Bg2 {[%emt 0:00:07]} O-O {[%emt 0:00:05]} 6. Nc3 {[%emt 0:00:39][%cal Bb1c3,Bc3d1,Bd1e3][%mdl 32]} dxc4 {[%emt 0:00:16]} 7. Ne5 {[%emt 0:00:37]} c5 {[%emt 0:00:27]} 8. dxc5 {[%emt 0:00:16]} Qxd1+ {[%emt 0:00:05]} 9. Nxd1 {[%emt 0:00:11] E06: Closed Catalan: Early deviations.} Bxc5 {[%emt 0:09:06]} 10. Ne3 {[%emt 0:01:04]} c3 {[%emt 0:02:53]} 11. bxc3 {[%emt 0:00:56] The position is equal.} Nbd7 {[%emt 0:06:46]} 12. Nd3 {[%emt 0:01:53]} Be7 {[%emt 0:04:10]} 13. a4 {[%emt 0:00:44]} Rb8 {[%emt 0:06:24] [#]} 14. Nc4 $146 {[%emt 0:06:36]} ({Predecessor:} 14. a5 Nc5 15. Nxc5 Bxc5 16. Ba3 Bxa3 17. Rxa3 Bd7 18. O-O Rfc8 19. Rb1 Bc6 20. Rab3 Bxg2 21. Kxg2 {½-½ (38) Dubov,D (2699)-Nakamura,H (2736) chess24.com INT 2020}) 14... Nd5 {[%emt 0:02:27]} 15. Bd2 {[%emt 0:16:08]} b6 {[%emt 0:07:35]} 16. Nce5 {[%emt 0:35:11]} Nxe5 {[%emt 0:08:32]} 17. Nxe5 {[%emt 0:00:03]} Bb7 {[%emt 0:02:18] Against Nc6} (17... Bf6 $5 {[%cal Rf6e5]} 18. Nc6 Rb7 $11) 18. Nd7 {[%emt 0:05:40]} Nf6 {[%emt 0:00:13]} 19. Bxb7 {[%emt 0:08:19]} Nxd7 {[%emt 0:00:26]} 20. Bg2 {[%emt 0:01:25]} Rbc8 {[%emt 0:03:49]} 21. a5 {[%emt 0:01:45]} Bf6 {[%emt 0:04:02]} 22. axb6 {[%emt 0:02:31]} axb6 {[%emt 0:01:55]} 23. O-O {[%emt 0:02:13]} Bxc3 {[%emt 0:01:25]} 24. Bxc3 {[%emt 0:00:26]} Rxc3 {[%emt 0:00:06]} 25. Ra7 {[%emt 0:01:25]} Nc5 {[%emt 0:11:11]} 26. Rb1 {[%emt 0:02:30]} Rb3 {[%emt 0:00:54] Weighted Error Value: White=0.10 (very precise) /Black=0.05 (flawless)} (26... g6 $15) 1/2-1/2